Cogmind - Beta 15 @@@ ROGUE MODE // 2025.07.09 @ 23:40:50 Player: beans Result: Destroyed by G-47 Trooper with Particle Gun Performance ------------- Evolutions (2) 1000 Regions Visited (3) 600 Robots Destroyed (93) 465 Value Destroyed (2196) 2196 Prototype IDs (1) 20 Alien Tech Used (0) 0 Bonus (91) 91 TOTAL SCORE: 4372 Bonus ------- High Alert Combat Kills 91 Cogmind --------- Core Integrity 0/550 Matter 200/300 Energy 100/100 System Corruption 3% Temperature Cool (9) Movement Core (50) Location -8/Materials Parts ------- > --- POWER (1) -------- (None) > --- PROPULSION (4) --- (None) > --- UTILITY (2) ------ (None) > --- WEAPON (4) ------- (None) > --- INVENTORY (5) ---- Advanced Targeting Computer Matter Filter Peak State ------------ > --- POWER ------------ Light Nuclear Core > --- PROPULSION ------- Improved Aluminum Leg Improved Aluminum Leg Carbon-fiber Leg Carbon-fiber Leg > --- UTILITY ---------- Target Analyzer Hacking Suite > --- WEAPON ----------- Flak Gun Flak Gun Flak Gun Flak Gun > --- INVENTORY -------- Advanced Targeting Computer Matter Filter Heavy Armor Plating Light Assault Rifle [Rating: 36] Favorites ----------- Power Light Nuclear Core Engine Ion Engine Power Core Light Nuclear Core Propulsion Improved Aluminum Leg Leg Improved Aluminum Leg Utility Hacking Suite Processor Target Analyzer Hackware Hacking Suite Protection Heavy Armor Plating Weapon Flak Gun Energy Gun Small Laser Ballistic Gun Flak Gun Build | -11 -10 -9 -8 ------- Run | Yrd Mat Mat Mat Slots Evolved 4 | . . 2 2 Power . | . . . . Propulsion 2 | . . . 2 Utility . | . . . . Weapon 2 | . . 2 . Parts Attached 29 | 6 2 9 12 Power 5 | 1 1 . 3 Engine 2 | 1 . . 1 Core 3 | . 1 . 2 Reactor . | . . . . Propulsion 8 | 2 . 2 4 Treads . | . . . . Leg 8 | 2 . 2 4 Wheel . | . . . . Hover . | . . . . Flight . | . . . . Utility 3 | . . 2 1 Device . | . . . . Storage . | . . . . Processor 1 | . . 1 . Hackware 1 | . . 1 . Protection 1 | . . . 1 Artifact . | . . . . Weapon 13 | 3 1 5 4 Energy Gun 1 | . 1 . . Energy Cannon . | . . . . Ballistic Gun 12 | 3 . 5 4 Ballistic Cannon . | . . . . Launcher . | . . . . Special Weapon . | . . . . Impact Weapon . | . . . . Slashing Weapon . | . . . . Piercing Weapon . | . . . . Special Melee Weapon . | . . . . Unidentified Prototypes 1 | . . 1 . Parts Lost 21 | . 1 4 16 Power 4 | . . 1 3 Propulsion 7 | . 1 1 5 Utility 1 | . . . 1 Weapon 9 | . . 2 7 Highest Loss Streak 8 | . 1 2 8 To Critical Strikes 1 | . . . 1 Average Backups 3 | . 1 2 3 Power . | . . . . Propulsion . | . . . . Utility . | . . . 1 Weapon 1 | . 1 2 1 Tool/Special . | . . . . Unused Backups 3 | . . . 3 Power 1 | . . . 1 Propulsion . | . . . . Utility 2 | . . . 2 Weapon . | . . . . Tool/Special . | . . . . Average Slot Usage (%) 81 | . 64 65 90 Engine 1 | . 7 . . Core 5 | . 6 3 6 Leg 24 | . 21 5 32 Processor 7 | . . 7 8 Hackware 8 | . . 10 8 Energy Gun 1 | . 6 2 . Ballistic Gun 32 | . 21 36 32 Peak Build Rating 36 | 5 6 22 36 Average Rating 22 | 3 5 15 29 On Entrance 8 | . 5 6 22 Naked Turns 2 | . . . 2 Heaviest Build 21 | 8 8 12 21 Greatest Support 56 | 20 20 26 56 Greatest Overweight (x) 4 | . . 3 4 Average Overweight (x) . | . . 1 . Largest Inventory Capacity 5 | 5 5 5 5 Average Capacity 5 | 5 5 5 5 Most Carried 5 | 4 3 5 5 Average Carried 3 | 1 1 2 3 Final Capacity 5 | 5 5 5 5 Final Carried 4 | 1 2 4 2 Class Distribution -------------------- 64% | Gunner 21% | Scavenger-Gunner 14% | Mutant Dominant Class ---------------- Mutant | -10/Materials Gunner | -9/Materials Gunner | -8/Materials Resources | -11 -10 -9 -8 ----------- Run | Yrd Mat Mat Mat Matter Collected 2417 | 166 162 598 1491 Remotely . | . . . . Salvage Created 2977 | . 276 875 1826 Parts 182 | . 13 64 105 Haulers Intercepted 6 | . . 2 4 Recyclers Shooed 4 | . . . 4 Parts Field Recycled . | . . . . Retrieved Matter . | . . . . Parts Self-Destructed . | . . . . Prevented . | . . . . Kills | -11 -10 -9 -8 ------- Run | Yrd Mat Mat Mat Combat Hostiles Destroyed 56 | . 6 18 32 Guns 56 | . 6 18 32 Classes Destroyed 14 | . 2 8 4 Worker 6 | . . 1 5 Builder 7 | . . 2 5 Tunneler 2 | . . 1 1 Hauler 6 | . . 2 4 Recycler 5 | . . 1 4 Mechanic 1 | . . . 1 Operator 3 | . . 1 2 Watcher 7 | . 2 1 4 Swarmer 16 | . . 8 8 Grunt 29 | . 6 9 14 Duelist 1 | . . . 1 Sentry 8 | . . 1 7 Hunter 1 | . . . 1 Heavy 1 | . . . 1 Best Kill Streak 17 | . 3 8 17 Combat Bots Only 6 | . 3 4 6 Max Kills in Single Turn 2 | . 1 2 2 Gunslinging 1 | . . 1 1 Exploded . | . . . . Melee . | . . . . Uniques/NPCs Destroyed . | . . . . Combat | -11 -10 -9 -8 -------- Run | Yrd Mat Mat Mat Hostile Shots Fired 329 | . 58 81 190 Missed 92 | . 14 29 49 Hits 237 | . 44 52 141 Projectile 237 | . 44 52 141 Critical Strikes 7 | . . 2 5 Damage Taken 3578 | . 519 564 2495 Core 760 | . 109 95 556 Absorbed by Shields . | . . . . Core Remaining (%) 77 | 100 56 76 . Volleys Fired 176 | . 30 40 106 Largest 4 | . 2 4 4 Hottest 112 | . 60 100 112 Shots Fired 563 | . 60 142 361 Gun 563 | . 60 142 361 Cannon . | . . . . Launcher . | . . . . Special . | . . . . Kinetic 544 | . 49 134 361 Thermal 19 | . 11 8 . Explosive . | . . . . Electromagnetic . | . . . . Robot Hit Streak 13 | . 5 6 13 Robot Miss Streak 17 | . 4 5 17 Penetration Max . | . . . . Secondary Targets 18 | . 2 8 8 Max Gunslinging Chain 2 | . 1 1 2 Shots Hit Robots 345 | . 35 66 244 Core Hits 252 | . 17 31 204 Critical Kills 4 | . . 1 3 Critical Parts Destroyed 3 | . . 2 1 Critical Strikes 8 | . . 3 5 Destroy 8 | . . 3 5 Melee Attacks . | . . . . Impact . | . . . . Slashing . | . . . . Piercing . | . . . . Sneak Attacks . | . . . . Combat Hostiles . | . . . . Follow-up Attacks . | . . . . Damage Inflicted 5256 | . 401 1101 3754 Guns 5246 | . 401 1101 3744 Cannons . | . . . . Explosions . | . . . . Melee . | . . . . Ramming 10 | . . . 10 Kinetic 5132 | . 322 1066 3744 Thermal 114 | . 79 35 . Explosive . | . . . . Electromagnetic . | . . . . Impact . | . . . . Slashing . | . . . . Piercing . | . . . . Highest Corruption 3 | . . . 3 Average Corruption 1 | . . . 1 Corruption Purged . | . . . . Corruption Blocked . | . . . . Effects 1 | . . . 1 Parts Rejected 1 | . . . 1 Overload Shots . | . . . . Overflow Damage . | . . . . Projectiles . | . . . . Explosions . | . . . . Melee . | . . . . Knockbacks . | . . . . Impact . | . . . . Kinetic . | . . . . Secondary . | . . . . Self-Inflicted Damage 3 | . . . 3 Shots . | . . . . Rammed 6 | . . . 6 Targets Rammed 7 | . . . 7 Kicked 1 | . . . 1 Crushed . | . . . . Highest Temperature 235 | . 111 202 235 Average Temperature 62 | . 40 79 59 Received Heat Transfer 1332 | . 288 225 819 Effects 3 | . . . 3 Interference 3 | . . . 3 Siege Activations . | . . . . Martial Activations . | . . . . Shielding Activations . | . . . . Robots Disrupted . | . . . . Combat Hostiles . | . . . . Robots Corrupted . | . . . . Combat Hostiles . | . . . . Parts Fried . | . . . . Impact Corruptions . | . . . . Robots Melted . | . . . . Combat Hostiles . | . . . . Parts Melted . | . . . . Heat Transferred 250 | . 175 75 . Parts Sabotaged . | . . . . Parts Stolen . | . . . . Parts Stripped . | . . . . Power Chain Reactions . | . . . . Alert | -11 -10 -9 -8 ------- Run | Yrd Mat Mat Mat Maximum Alert Level 2 | . . 1 2 Low Security (%) 39 | 100 100 47 23 Level 1 24 | . . 52 19 Level 2 35 | . . . 57 Level 3 . | . . . . Level 4 . | . . . . Level 5 . | . . . . High Security . | . . . . Max Security . | . . . . Peak Influence 506 | . 60 306 506 Initial 97 | . . 20 97 Average 260 | . 14 184 344 Influence Increases 1721 | . 154 506 1061 Destroy 0b10 Robot/C 1120 | . 120 360 640 Destroy 0b10 Robot/NC 185 | . 10 45 130 Destroy Leader 246 | . 24 56 166 Successful Hack 17 | . . 14 3 Disable Machine 15 | . . 15 . Destroy Structure 3 | . . 1 2 Lose Combat Pursuer 135 | . . 15 120 Influence Decreases 1249 | . 104 324 821 Entered New Map 165 | . . 30 135 Time Decay 874 | . 94 254 526 Lost Part 210 | . 10 40 160 Squads Dispatched 8 | . 1 1 6 Investigation 1 | . 1 . . Extermination . | . . . . Reinforcement 6 | . . 1 5 Assault . | . . . . Garrison 1 | . . . 1 Intercept . | . . . . Searches Triggered . | . . . . Construction Impeded 1 | . . . 1 Haulers Reinforced . | . . . . Active Scanning Responses . | . . . . Cargo Convoy Interrupts . | . . . . Stealth | -11 -10 -9 -8 --------- Run | Yrd Mat Mat Mat Distress Signals 6 | . 1 2 3 Communications Jammed . | . . . . Distress Signals . | . . . . Times Spotted 92 | . 10 23 59 Peak Tracking Total 7 | . 3 6 7 Tactical Retreats 5 | . . 1 4 Traps | -11 -10 -9 -8 ------- Run | Yrd Mat Mat Mat Traps Triggered 2 | . 1 . 1 Indirectly . | . . . . Trap Hack Attempts . | . . . . Triggered . | . . . . Disarmed . | . . . . Reprogrammed . | . . . . Reused . | . . . . Traps Extracted . | . . . . Installed . | . . . . Triggered . | . . . . Machines | -11 -10 -9 -8 ---------- Run | Yrd Mat Mat Mat Machines Disabled 1 | . . 1 . Max in Single Turn 1 | . . 1 . Machines Repaired . | . . . . Machines Dismantled . | . . . . Machines Sabotaged . | . . . . Overloaded Fab Kills . | . . . . Hacking | -11 -10 -9 -8 --------- Run | Yrd Mat Mat Mat Machines Accessed 3 | . 1 1 1 Terminals 3 | . 1 1 1 Fabricators . | . . . . Repair Stations . | . . . . Recycling Units . | . . . . Scanalyzers . | . . . . Garrison Access . | . . . . Total Hacks 10 | . 1 6 3 Successful 7 | . 1 4 2 Failed 3 | . . 2 1 Catastrophic 2 | . . 2 . Database Lockouts . | . . . . Manual . | . . . . Terminals 10 | . 1 6 3 Fabricators . | . . . . Repair Stations . | . . . . Recycling Units . | . . . . Scanalyzers . | . . . . Garrison Access . | . . . . Terminal Hacks 7 | . 1 4 2 Record 5 | . . 4 1 Branch Access Points 1 | . 1 . . Dispatch Records 1 | . . . 1 Fabricator Hacks . | . . . . Repair Station Hacks . | . . . . Recycling Unit Hacks . | . . . . Scanalyzer . | . . . . Garrison Access Hacks . | . . . . Unauthorized Hacks . | . . . . Terminals . | . . . . Fabricators . | . . . . Repair Stations . | . . . . Recycling Units . | . . . . Scanalyzers . | . . . . Garrison Access . | . . . . Data Cores Recovered 1 | . . 1 . Used . | . . . . Hacking Detections 2 | . . 1 1 Full Trace Events . | . . . . Feedback Events . | . . . . Feedback Blocked . | . . . . Robot Schematics Acquired . | . . . . Robots Built . | . . . . Authchips . | . . . . Time . | . . . . Total Robot Build Rating . | . . . . Part Schematics Acquired . | . . . . Parts Built . | . . . . Authchips . | . . . . Time . | . . . . Total Part Build Rating . | . . . . Parts Repaired . | . . . . Time . | . . . . Parts Recycled . | . . . . Recycled Matter . | . . . . Retrieved Matter . | . . . . Retrieved Components . | . . . . Parts Scanalyzed . | . . . . Part Schematics Acquired . | . . . . Parts Damaged . | . . . . Bothacking | -11 -10 -9 -8 ------------ Run | Yrd Mat Mat Mat Used RIF Installer . | . . . . Robots Hacked . | . . . . Non-combat . | . . . . Combat . | . . . . Robot Hacks Applied . | . . . . Relay Couplers Released . | . . . . Fabnet Peak Effective % . | . . . . Robots Rewired . | . . . . Allies Hacked . | . . . . Hacks Repelled . | . . . . Allies | -11 -10 -9 -8 -------- Run | Yrd Mat Mat Mat Total Allies . | . . . . Largest Group . | . . . . Highest-Rated Group . | . . . . Highest-Rated Ally . | . . . . Total Orders . | . . . . Ally Attacks . | . . . . Total Damage . | . . . . Kills . | . . . . Allies Corrupted . | . . . . Allies Melted . | . . . . Intel | -11 -10 -9 -8 ------- Run | Yrd Mat Mat Mat Active Infowar (turns) . | . . . . Robot Analysis Total . | . . . . Derelict Logs Recovered . | . . . . Drone Launches . | . . . . Drone Recoveries . | . . . . Exploration | -11 -10 -9 -8 ------------- Run | Yrd Mat Mat Mat Turns Passed 2342 | 41 285 546 1470 Spaces Moved 1253 | 34 162 274 783 Core 179 | 16 . 162 1 Treads . | . . . . Legs 1074 | 18 162 112 782 Wheels . | . . . . Hover . | . . . . Flight . | . . . . Fastest Speed 50 | 50 120 120 120 Average Speed 125 | 87 120 150 120 Slowest Speed 250 | 120 120 200 250 Overloaded Moves . | . . . . Propulsion Burnouts . | . . . . Robots Hopped . | . . . . Potential Cave-ins . | . . . . Cave-ins Triggered . | . . . . Exploration Rate (%) 28 | 3 28 28 55 Regions Visited 3 Branch Regions . Pre-discovered Areas . | . . . . Known Exits Taken . | . . . . Unknown Exits Taken 3 | 1 1 1 . Scrap Searched . | . . . . Spaces Dug . | . . . . Terrain Destroyed . | . . . . Melee . | . . . . Projectile . | . . . . AOE . | . . . . Terrain Rammed . | . . . . Walls Destroyed . | . . . . Machines Disabled . | . . . . Actions | -11 -10 -9 -8 --------- Run | Yrd Mat Mat Mat Total 1658 | 45 196 338 1079 Wait 151 | . . . 151 Move 1250 | 33 161 273 783 Hop . | . . . . Pick Up 27 | 6 2 10 9 Fast Attach 5 | . . 1 4 Attach 20 | 5 . 8 7 Detach 1 | . . 1 . Swap 11 | 1 2 4 4 Drop 10 | . 1 1 8 Fire 176 | . 30 40 106 Melee . | . . . . Ram 6 | . . . 6 Kick 1 | . . . 1 Crush . | . . . . Escape Stasis . | . . . . Rewire . | . . . . Trap . | . . . . Miscellaneous . | . . . . Route ------- -11/Scrapyard -10/Materials (discovered 3 exits: *Mat / Min x2) -9/Materials -8/Materials (discovered 1 exit: [*Fac]) History --------- Turn | Location | Event 12 | -11/Scrapyard | Discovered new exit (range 16) 42 | -11/Scrapyard | Entered Materials 227 | -10/Materials | Identified exit to Mines 271 | -10/Materials | Discovered new exit (range 16) 316 | -10/Materials | Build established: Mutant 327 | -10/Materials | Entered another Materials area 327 | -9/Materials | Evolved 2 slots: Weapon x2 640 | -9/Materials | Build established: Gunner 789 | -9/Materials | Discovered new exit (range 8) 873 | -9/Materials | Entered another Materials area 873 | -8/Materials | Evolved 2 slots: Propulsion x2 1261 | -8/Materials | Discovered new exit (range 5) 1951 | -8/Materials | Build established: Scavenger-Gunner 2278 | -8/Materials | Core integrity fell below 50% 2282 | -8/Materials | Garrison activated, responded to threat 2313 | -8/Materials | Core integrity fell below 20% 2343 | -8/Materials | Destroyed by G-47 Trooper with Particle Gun Last Messages --------------- System corrupted: Lgt. Assault Rifle rejected. Carbon-fiber Leg destroyed. Flak Gun destroyed. Discarded Target Analyzer. Discarded Hacking Suite. Slammed into Y-45 Defender. G-47 Trooper suffers critical hit (Burn). G-47 Trooper destroyed. K-01 Serf collects debris. U-05 Engineer builds a Wall. Slammed into Y-45 Defender. G-50 Soldier destroyed. Slammed into Y-45 Defender. Slammed into G-47 Trooper. Destabilizing: System corrupted (+2). K-01 Serf collects debris. Slammed into G-47 Trooper. K-01 Serf collects debris. Y-45 Defender destroyed. Hvy. Armor Plating destroyed. Map ----- +----------------------------------------------------+ | # ! # ##########+### | | # # * | | # =# ! = | | # + "" """ T | | # """ # "" """ | | # """""# """ "" | | # """""# ! #####+### | | # """""#=!= #??? ?## | | # """ # """ "" #??? ?# | | # ? # """ "" #?? /## | | ######????### """ """ #?? ## | | ????????????# #??"" ## | | ????????????# #?""" ## | | ????????????# ######+#??"" ## | | ????????????# #?????????? ## | | ????????????# #???????######### | | ????????????# +?????" + | | ???########## #????????# | | ??? # #????????# | | ????"" """ # +????????# | | # """"""""[[# #????????# % | | # """"*% # %#????????# #### | | # %==#% % ########## ####+ | | # """ """Yg#% u # | | ??"""""""""!/g% %a### # """ | | ??? """"" #@ % #?# + """ | | ???? # ^ ^#?# # """ | | ???""" """ #####k#?# # | | ???"""""""" #???# #?############ # | | ???? """"" #???# #????????????# ####+ | | ????? #??? ????????????# ##!= | | ??????#######??? ???????#####+## ## | | ????????????????= ? ??????# #*#? | | ???????????????? ?##?????# """ + #? | | ???????????????? ???????# """ # #? | | ????????????????#+##???????# """ # #? | | ???????????????????????????# # #? | | ???????????????????????????# # #? | | ???????????????????????????######## #? | | ??????????????????????????????????# #? | | ??????????????????????????????????# #? | | ??????????????????????????????????? ?? | | ??????????????????????????????????? ?? | | ??????????????????????????????????? ?? | | ??????????????????????????????????? ?? | | ??????????????????????????????????? ?? | | ??????????????????????????????????? ?? | | ??????????????????????????????????? ?? | | ?????????????????????????????????????? | | ?????????????????????????????????????? | +----------------------------------------------------+ Best States ------------- Heat Dissipation 31 Energy Generation 14 Energy Capacity 275 Matter Stores 300 Matter Capacity 300 Sight Range 16 Terrain Scan Density 10 Armor Coverage 600 Evasion (%) 55 Target Analysis 5 Offensive Hacking 10 Item Schematics ----------------- None Robot Schematics ------------------ None Fabricated ------------ Nothing Repaired ---------- Nothing Alien Tech Used ----------------- None Achievements -------------- None Challenges ------------ None Game ------ Seed IntegratedCarbideCycler Manual? 0 Play Time 00:20:51 Cumulative 44.6 hours Start 2025.07.09 @ 23:21:43 End 2025.07.09 @ 23:40:50 Sessions 1 Manual Loads 0 Difficulty Rogue Special Mode None Game No. 210 Rogue 210 Adventurer 0 Explorer 0 Win Type - Total 0 Types 0/0/0/0/0/0/0/0/0/0 Lore% 32 Gallery% 26 Achievement% 22 Wizard Run 0 Options --------- Layout 2 ASCII 0 Keyboard 0 Movement Mouse Keybinds 0 Fullscreen 1 Font 24/Smallcaps Map View 50x44 Zoom Use 0% Tactical HUD 0 Map Filters NONE Filters NONE Steam 1 RUN: 362f97ce-5a88-442b-834e-af53c3bf1990